[Event "Live Chess"]
[Site "Chess.com"]
[Date "2023.05.21"]
[Round "-"]
[White "domrobson"]
[Black "Cimon"]
[Result "0-1"]
[WhiteElo "1760"]
[BlackElo "1846"]
[TimeControl "300"]
[EndTime "7:02:20 PDT"]
[Termination "Cimon won by resignation"]

1. d4 {[%clk 0:04:57.9]} 1... d5 {[%clk 0:04:58.5]} 2. c4 {[%clk 0:04:57.4]}
2... c6 {[%clk 0:04:56.7]} 3. Nf3 {[%clk 0:04:57]} 3... Nf6 {[%clk 0:04:55.5]}
4. Nc3 {[%clk 0:04:56.6]} 4... dxc4 {[%clk 0:04:54.2]} 5. e3 {[%clk 0:04:54.8]}
5... b5 {[%clk 0:04:45.7]} 6. a4 {[%clk 0:04:51.7]} 6... b4 {[%clk 0:04:42.5]}
7. Na2 {[%clk 0:04:51.3]} 7... a5 {[%clk 0:04:40]} 8. Bxc4 {[%clk 0:04:49.7]}
8... e6 {[%clk 0:04:37.7]} 9. b3 {[%clk 0:04:48.6]} 9... Bb7 {[%clk 0:04:24.6]}
10. O-O {[%clk 0:04:46.8]} 10... Nbd7 {[%clk 0:04:23.3]} 11. Bb2 {[%clk
0:04:45.4]} 11... Be7 {[%clk 0:04:17.5]} 12. Rc1 {[%clk 0:04:41.6]} 12... O-O
{[%clk 0:04:15.8]} 13. Rc2 {[%clk 0:04:31.8]} 13... Rc8 {[%clk 0:04:13.5]} 14.
Nc1 {[%clk 0:04:30.3]} 14... c5 {[%clk 0:04:05.6]} 15. dxc5 {[%clk 0:04:26.5]}
15... Nxc5 {[%clk 0:04:03.9]} 16. Rd2 {[%clk 0:04:22]} 16... Qb6 {[%clk
0:03:57.3]} 17. Bd4 {[%clk 0:04:18]} 17... Qc7 {[%clk 0:03:51.8]} 18. Nd3 {[%clk
0:04:06.5]} 18... Nce4 {[%clk 0:03:38.7]} 19. Rc2 {[%clk 0:03:58.8]} 19... Qb8
{[%clk 0:03:12.1]} 20. Be5 {[%clk 0:03:50]} 20... Bd6 {[%clk 0:03:05.8]} 21.
Bxd6 {[%clk 0:03:40]} 21... Nxd6 {[%clk 0:03:03.7]} 22. Qc1 {[%clk 0:03:36.4]}
22... Nfe4 {[%clk 0:02:47]} 23. Nd4 {[%clk 0:03:19.1]} 23... Nc3 {[%clk
0:02:41.3]} 24. Rxc3 {[%clk 0:03:13.8]} 24... bxc3 {[%clk 0:02:39.5]} 25. Qxc3
{[%clk 0:03:13.5]} 25... Bd5 {[%clk 0:02:27.9]} 26. Rc1 {[%clk 0:03:10.5]} 26...
Bxc4 {[%clk 0:02:26.3]} 27. bxc4 {[%clk 0:03:08.4]} 27... Rxc4 {[%clk
0:02:23.7]} 0-1

[Event "Live Chess"]
[Site "Chess.com"]
[Date "2023.05.21"]
[Round "-"]
[White "elephantgerrald"]
[Black "kevinmilleruk"]
[Result "0-1"]
[WhiteElo "667"]
[BlackElo "1150"]
[TimeControl "300"]
[EndTime "7:02:21 PDT"]
[Termination "kevinmilleruk won by checkmate"]

1. e4 {[%clk 0:04:58.4]} 1... e5 {[%clk 0:04:59.3]} 2. Nf3 {[%clk 0:04:56.7]}
2... Nc6 {[%clk 0:04:57.9]} 3. Bb5 {[%clk 0:04:55]} 3... Bc5 {[%clk 0:04:56.9]}
4. O-O {[%clk 0:04:51.4]} 4... d6 {[%clk 0:04:54.6]} 5. Nc3 {[%clk 0:04:48.9]}
5... Bg4 {[%clk 0:04:53.1]} 6. h3 {[%clk 0:04:42.3]} 6... Bxf3 {[%clk
0:04:49.7]} 7. Qxf3 {[%clk 0:04:40.8]} 7... Nf6 {[%clk 0:04:45]} 8. Nd5 {[%clk
0:04:38]} 8... Nxd5 {[%clk 0:04:42.5]} 9. exd5 {[%clk 0:04:36.7]} 9... a6 {[%clk
0:04:38.5]} 10. dxc6 {[%clk 0:04:34.1]} 10... axb5 {[%clk 0:04:36.6]} 11. cxb7
{[%clk 0:04:32.9]} 11... Rb8 {[%clk 0:04:34.9]} 12. Qc6+ {[%clk 0:04:31]} 12...
Qd7 {[%clk 0:04:27.3]} 13. Qxd7+ {[%clk 0:04:28.6]} 13... Kxd7 {[%clk
0:04:23.3]} 14. a3 {[%clk 0:04:26.7]} 14... Rxb7 {[%clk 0:04:21.6]} 15. b4
{[%clk 0:04:25.3]} 15... Bb6 {[%clk 0:04:19.6]} 16. c3 {[%clk 0:04:23.7]} 16...
c5 {[%clk 0:04:17.6]} 17. d3 {[%clk 0:03:56.2]} 17... c4 {[%clk 0:04:05.1]} 18.
Be3 {[%clk 0:03:44.1]} 18... cxd3 {[%clk 0:03:58.2]} 19. Bxb6 {[%clk 0:03:41.7]}
19... Rxb6 {[%clk 0:03:52.7]} 20. f3 {[%clk 0:03:39.3]} 20... Rc6 {[%clk
0:03:46.8]} 21. Rac1 {[%clk 0:03:17.5]} 21... Rhc8 {[%clk 0:03:44.1]} 22. Rfd1
{[%clk 0:03:14.7]} 22... Rxc3 {[%clk 0:03:42.1]} 23. Rxc3 {[%clk 0:03:13.5]}
23... Rxc3 {[%clk 0:03:40.7]} 24. Ra1 {[%clk 0:03:10]} 24... d2 {[%clk
0:03:38.5]} 25. Kf2 {[%clk 0:03:09]} 25... Rc2 {[%clk 0:03:36.2]} 26. Rd1 {[%clk
0:03:05.2]} 26... d5 {[%clk 0:03:30.3]} 27. Ke2 {[%clk 0:02:57.9]} 27... d4
{[%clk 0:03:28.7]} 28. Rxd2 {[%clk 0:02:56.9]} 28... Rxd2+ {[%clk 0:03:27.6]}
29. Kxd2 {[%clk 0:02:55.8]} 29... Kd6 {[%clk 0:03:27.2]} 30. Kd3 {[%clk
0:02:54.6]} 30... Kd5 {[%clk 0:03:26.4]} 31. g4 {[%clk 0:02:51.5]} 31... g5
{[%clk 0:03:25.1]} 32. Kd2 {[%clk 0:02:45.5]} 32... Kc4 {[%clk 0:03:24]} 33. Kc2
{[%clk 0:02:43.1]} 33... d3+ {[%clk 0:03:22.3]} 34. Kd2 {[%clk 0:02:41.5]} 34...
h6 {[%clk 0:03:18.2]} 35. Kd1 {[%clk 0:02:36.5]} 35... Kc3 {[%clk 0:03:14.9]}
36. a4 {[%clk 0:02:31.7]} 36... bxa4 {[%clk 0:03:12]} 37. b5 {[%clk 0:02:30.2]}
37... a3 {[%clk 0:03:11.4]} 38. Kc1 {[%clk 0:02:27.6]} 38... d2+ {[%clk
0:03:10.2]} 39. Kd1 {[%clk 0:02:26.3]} 39... a2 {[%clk 0:03:09.5]} 40. b6 {[%clk
0:02:26.2]} 40... a1=Q+ {[%clk 0:03:08.6]} 41. Ke2 {[%clk 0:02:25.5]} 41... Qe1#
{[%clk 0:03:07.5]} 0-1

[Event "Live Chess"]
[Site "Chess.com"]
[Date "2023.05.21"]
[Round "-"]
[White "EdenHazard8"]
[Black "chessfiction"]
[Result "0-1"]
[WhiteElo "1963"]
[BlackElo "2307"]
[TimeControl "300"]
[EndTime "7:02:28 PDT"]
[Termination "chessfiction won by resignation"]

1. e4 {[%clk 0:04:59.1]} 1... d6 {[%clk 0:04:58.7]} 2. d4 {[%clk 0:04:57.4]}
2... Nf6 {[%clk 0:04:58.6]} 3. Nc3 {[%clk 0:04:57.2]} 3... c6 {[%clk 0:04:57.8]}
4. Be3 {[%clk 0:04:57.1]} 4... Qb6 {[%clk 0:04:56.6]} 5. f3 {[%clk 0:04:57]}
5... Qxb2 {[%clk 0:04:54.4]} 6. Bd2 {[%clk 0:04:53.2]} 6... Qa3 {[%clk
0:04:49.8]} 7. Rb1 {[%clk 0:04:51.4]} 7... g6 {[%clk 0:04:46]} 8. Bc4 {[%clk
0:04:45.5]} 8... Bg7 {[%clk 0:04:42.1]} 9. Nh3 {[%clk 0:04:40.2]} 9... O-O
{[%clk 0:04:35.5]} 10. O-O {[%clk 0:04:37.4]} 10... Bxh3 {[%clk 0:04:32.9]} 11.
gxh3 {[%clk 0:04:35.4]} 11... b5 {[%clk 0:04:31.8]} 12. Rb3 {[%clk 0:04:29.2]}
12... Qa6 {[%clk 0:04:29.6]} 13. Bd3 {[%clk 0:04:27]} 13... Nbd7 {[%clk
0:04:27.9]} 14. a4 {[%clk 0:04:25.2]} 14... Nh5 {[%clk 0:04:21.3]} 15. axb5
{[%clk 0:04:22.6]} 15... Bxd4+ {[%clk 0:04:19.4]} 16. Kg2 {[%clk 0:04:19.8]}
16... cxb5 {[%clk 0:04:06.1]} 17. Bxb5 {[%clk 0:04:19.7]} 17... Qc8 {[%clk
0:04:04]} 18. Nd5 {[%clk 0:04:17.1]} 18... Re8 {[%clk 0:03:55.7]} 19. Bg5 {[%clk
0:03:57.1]} 19... Bf6 {[%clk 0:03:50.8]} 20. Bxf6 {[%clk 0:03:53.2]} 20... Ndxf6
{[%clk 0:03:42.8]} 21. Bxe8 {[%clk 0:03:49.7]} 21... Nxd5 {[%clk 0:03:40]} 22.
Bxf7+ {[%clk 0:03:46.4]} 22... Kxf7 {[%clk 0:03:36]} 23. Qxd5+ {[%clk
0:03:44.8]} 23... Kg7 {[%clk 0:03:32.1]} 24. Qg5 {[%clk 0:03:41.7]} 24... Qxc2+
{[%clk 0:03:24.3]} 25. Rf2 {[%clk 0:03:38]} 25... Qxb3 {[%clk 0:03:23]} 26.
Qxe7+ {[%clk 0:03:37.9]} 26... Qf7 {[%clk 0:03:21.2]} 27. Qxd6 {[%clk 0:03:35]}
27... Rf8 {[%clk 0:03:18.4]} 28. Qd4+ {[%clk 0:03:31.7]} 28... Kg8 {[%clk
0:03:10]} 29. e5 {[%clk 0:03:16.1]} 29... Nf4+ {[%clk 0:03:05.3]} 30. Kg3 {[%clk
0:03:15]} 30... Qe7 {[%clk 0:02:55.3]} 31. Qc4+ {[%clk 0:03:08.2]} 31... Kg7
{[%clk 0:02:52.2]} 32. h4 {[%clk 0:03:07.2]} 32... Qxe5 {[%clk 0:02:45.7]} 0-1

[Event "Live Chess"]
[Site "Chess.com"]
[Date "2023.05.21"]
[Round "-"]
[White "McSlash1"]
[Black "ossie57"]
[Result "1-0"]
[WhiteElo "2007"]
[BlackElo "1832"]
[TimeControl "300"]
[EndTime "7:02:39 PDT"]
[Termination "McSlash1 won on time"]

1. e4 {[%clk 0:04:59.5]} 1... c5 {[%clk 0:04:58.2]} 2. Nc3 {[%clk 0:04:58.1]}
2... d6 {[%clk 0:04:56.8]} 3. f4 {[%clk 0:04:57.5]} 3... g6 {[%clk 0:04:53]} 4.
Nf3 {[%clk 0:04:57.1]} 4... Bg7 {[%clk 0:04:52.3]} 5. Bc4 {[%clk 0:04:56.8]}
5... e6 {[%clk 0:04:44.7]} 6. O-O {[%clk 0:04:55.5]} 6... a6 {[%clk 0:04:44.1]}
7. f5 {[%clk 0:04:54.9]} 7... b5 {[%clk 0:04:38.8]} 8. Be2 {[%clk 0:04:53.4]}
8... Nf6 {[%clk 0:04:30.1]} 9. fxe6 {[%clk 0:04:52.2]} 9... Bxe6 {[%clk
0:04:28.7]} 10. a4 {[%clk 0:04:52.1]} 10... b4 {[%clk 0:04:26.3]} 11. Nb1 {[%clk
0:04:46.5]} 11... O-O {[%clk 0:04:18.9]} 12. d3 {[%clk 0:04:46.1]} 12... Nc6
{[%clk 0:04:15.6]} 13. Ng5 {[%clk 0:04:42.5]} 13... Nd4 {[%clk 0:03:45.4]} 14.
Nxe6 {[%clk 0:04:38.5]} 14... fxe6 {[%clk 0:03:44.3]} 15. Be3 {[%clk 0:04:35.6]}
15... Nd7 {[%clk 0:03:30.4]} 16. Nd2 {[%clk 0:04:32]} 16... Nxe2+ {[%clk
0:03:29.5]} 17. Qxe2 {[%clk 0:04:31]} 17... Bxb2 {[%clk 0:03:26.5]} 18. Rab1
{[%clk 0:04:27.2]} 18... Bg7 {[%clk 0:03:24.1]} 19. Nc4 {[%clk 0:04:25.9]} 19...
Rxf1+ {[%clk 0:03:18.7]} 20. Rxf1 {[%clk 0:04:24.4]} 20... d5 {[%clk 0:03:12.1]}
21. Nd6 {[%clk 0:04:23]} 21... Ne5 {[%clk 0:03:04.4]} 22. Bxc5 {[%clk
0:04:16.9]} 22... b3 {[%clk 0:02:55]} 23. cxb3 {[%clk 0:04:13.2]} 23... Rb8
{[%clk 0:02:51.4]} 24. b4 {[%clk 0:04:12.3]} 24... Bf8 {[%clk 0:02:34.3]} 25.
Nf7 {[%clk 0:04:08]} 25... Nxf7 {[%clk 0:02:29.9]} 26. Qf3 {[%clk 0:03:57.8]}
26... Ne5 {[%clk 0:02:06.9]} 27. Qh3 {[%clk 0:03:49]} 27... Bxc5+ {[%clk
0:02:03.3]} 28. Kh1 {[%clk 0:03:46.7]} 28... Bd6 {[%clk 0:01:39.1]} 29. Qxe6+
{[%clk 0:03:44.1]} 29... Kg7 {[%clk 0:01:33.5]} 30. d4 {[%clk 0:03:43.3]} 30...
Qe7 {[%clk 0:01:28.2]} 31. Qxd5 {[%clk 0:03:36.8]} 31... Nd3 {[%clk 0:01:17.9]}
32. e5 {[%clk 0:03:34.7]} 32... Rf8 {[%clk 0:01:08.4]} 33. Ra1 {[%clk
0:03:25.2]} 33... Nxe5 {[%clk 0:00:58.8]} 34. dxe5 {[%clk 0:03:25.1]} 34... Bxe5
{[%clk 0:00:56.1]} 35. Re1 {[%clk 0:03:21.2]} 35... Qf6 {[%clk 0:00:41.7]} 36.
Qc4 {[%clk 0:02:56.1]} 36... Qf2 {[%clk 0:00:11.5]} 37. Rd1 {[%clk 0:02:45.4]}
37... Bxh2 {[%clk 0:00:09.3]} 38. Kxh2 {[%clk 0:02:42.1]} 38... Kh6 {[%clk
0:00:08]} 39. Qc1+ {[%clk 0:02:38.7]} 39... Kg7 {[%clk 0:00:06.1]} 40. Qc7+
{[%clk 0:02:36.1]} 40... Kg8 {[%clk 0:00:06]} 41. Qg3 {[%clk 0:02:34.2]} 41...
Qf4 {[%clk 0:00:05]} 42. Qxf4 {[%clk 0:02:30.8]} 42... Rxf4 {[%clk 0:00:04.9]}
43. Rd6 {[%clk 0:02:30.4]} 43... Rxb4 {[%clk 0:00:03.9]} 44. Rxa6 {[%clk
0:02:29.9]} 44... Kg7 {[%clk 0:00:03.5]} 45. a5 {[%clk 0:02:29.1]} 45... Kh6
{[%clk 0:00:02.8]} 46. Ra7 {[%clk 0:02:28.6]} 46... Ra4 {[%clk 0:00:02.7]} 47.
a6 {[%clk 0:02:27.1]} 47... Kg5 {[%clk 0:00:02]} 48. Kg3 {[%clk 0:02:26]} 48...
h5 {[%clk 0:00:01.6]} 49. Kf2 {[%clk 0:02:23.8]} 49... Ra3 {[%clk 0:00:01.3]}
50. g3 {[%clk 0:02:23]} 50... Ra2+ {[%clk 0:00:00.7]} 51. Ke3 {[%clk 0:02:21.9]}
51... Kg4 {[%clk 0:00:00.2]} 52. Rg7 {[%clk 0:02:20.3]} 1-0

[Event "Live Chess"]
[Site "Chess.com"]
[Date "2023.05.21"]
[Round "-"]
[White "manthanit"]
[Black "MartynColebrook"]
[Result "0-1"]
[WhiteElo "1081"]
[BlackElo "1335"]
[TimeControl "300"]
[EndTime "7:03:20 PDT"]
[Termination "MartynColebrook won on time"]

1. e4 {[%clk 0:04:55.8]} 1... d5 {[%clk 0:04:58.7]} 2. exd5 {[%clk 0:04:50.7]}
2... Qxd5 {[%clk 0:04:56.9]} 3. Nc3 {[%clk 0:04:49.1]} 3... Qa5 {[%clk
0:04:55.1]} 4. Nf3 {[%clk 0:04:44.9]} 4... Nf6 {[%clk 0:04:50.8]} 5. h3 {[%clk
0:04:41.4]} 5... e5 {[%clk 0:04:46.6]} 6. Be2 {[%clk 0:04:36.6]} 6... e4 {[%clk
0:04:39.3]} 7. Nh2 {[%clk 0:04:30.5]} 7... Bd6 {[%clk 0:04:31.1]} 8. O-O {[%clk
0:04:28.5]} 8... Nc6 {[%clk 0:04:25.3]} 9. d3 {[%clk 0:04:27.7]} 9... exd3
{[%clk 0:04:22.5]} 10. Bxd3 {[%clk 0:04:26.9]} 10... Bd7 {[%clk 0:04:14.8]} 11.
Re1+ {[%clk 0:04:25.7]} 11... Be6 {[%clk 0:04:13.2]} 12. a3 {[%clk 0:04:14.8]}
12... O-O-O {[%clk 0:04:11.4]} 13. Qf3 {[%clk 0:03:57.7]} 13... Ne5 {[%clk
0:03:58.5]} 14. Qe2 {[%clk 0:03:42.9]} 14... Nxd3 {[%clk 0:03:49.3]} 15. cxd3
{[%clk 0:03:41.9]} 15... Bf5 {[%clk 0:03:42.7]} 16. Kh1 {[%clk 0:03:34.2]} 16...
Bxh2 {[%clk 0:03:31.8]} 17. Kxh2 {[%clk 0:03:30.9]} 17... Bxd3 {[%clk
0:03:25.3]} 18. Qf3 {[%clk 0:03:06.8]} 18... Bg6 {[%clk 0:02:55]} 19. Bf4 {[%clk
0:03:01.1]} 19... Rd3 {[%clk 0:02:46.4]} 20. Qe2 {[%clk 0:02:35.8]} 20... Re8
{[%clk 0:02:32.2]} 21. Qf1 {[%clk 0:02:13.5]} 21... Qf5 {[%clk 0:02:04.7]} 22.
Bg3 {[%clk 0:02:06.1]} 22... Rd2 {[%clk 0:01:41.9]} 23. Rxe8+ {[%clk 0:02:02.7]}
23... Nxe8 {[%clk 0:01:39.6]} 24. Rd1 {[%clk 0:01:03.7]} 24... Rxb2 {[%clk
0:01:30.4]} 25. Nb5 {[%clk 0:00:44.7]} 25... Rxb5 {[%clk 0:00:50.8]} 26. f4
{[%clk 0:00:13.6]} 26... Qc5 {[%clk 0:00:45.1]} 27. Re1 {[%clk 0:00:08.1]} 27...
Nf6 {[%clk 0:00:36.2]} 28. Re2 {[%clk 0:00:05.3]} 28... Kd7 {[%clk 0:00:28.1]}
29. Bf2 {[%clk 0:00:03.4]} 29... Qd5 {[%clk 0:00:26.3]} 0-1

[Event "Live Chess"]
[Site "Chess.com"]
[Date "2023.05.21"]
[Round "-"]
[White "DoYouLikeCurry"]
[Black "onemoretime1975"]
[Result "1-0"]
[WhiteElo "1445"]
[BlackElo "1839"]
[TimeControl "300"]
[EndTime "7:03:23 PDT"]
[Termination "DoYouLikeCurry won by resignation"]

1. e4 {[%clk 0:04:57.8]} 1... e6 {[%clk 0:04:58.6]} 2. d4 {[%clk 0:04:56.3]}
2... d5 {[%clk 0:04:56.7]} 3. e5 {[%clk 0:04:55.7]} 3... c5 {[%clk 0:04:54.8]}
4. c3 {[%clk 0:04:54.9]} 4... Nc6 {[%clk 0:04:52.3]} 5. Nf3 {[%clk 0:04:53.1]}
5... Bd7 {[%clk 0:04:38.8]} 6. a3 {[%clk 0:04:50.7]} 6... a5 {[%clk 0:04:31.6]}
7. Be2 {[%clk 0:04:22.9]} 7... Qb6 {[%clk 0:04:20]} 8. O-O {[%clk 0:04:07.4]}
8... g6 {[%clk 0:04:04.8]} 9. a4 {[%clk 0:04:01.7]} 9... cxd4 {[%clk 0:03:55.6]}
10. cxd4 {[%clk 0:03:51.1]} 10... Nb4 {[%clk 0:03:25]} 11. Nc3 {[%clk
0:03:42.9]} 11... h5 {[%clk 0:03:18.7]} 12. Bd2 {[%clk 0:03:37.7]} 12... Nh6
{[%clk 0:03:03.1]} 13. Rc1 {[%clk 0:03:32.1]} 13... Nf5 {[%clk 0:03:01.2]} 14.
Nb5 {[%clk 0:03:27.2]} 14... Rc8 {[%clk 0:02:41.8]} 15. Nd6+ {[%clk 0:03:10.8]}
15... Nxd6 {[%clk 0:02:35.6]} 16. exd6 {[%clk 0:03:10.7]} 16... Bxd6 {[%clk
0:02:32.6]} 17. Rxc8+ {[%clk 0:03:06.8]} 17... Bxc8 {[%clk 0:02:30.6]} 18. Qc1
{[%clk 0:03:03.7]} 18... Qc6 {[%clk 0:02:21.6]} 19. Bb5 {[%clk 0:02:56.9]} 1-0

[Event "Live Chess"]
[Site "Chess.com"]
[Date "2023.05.21"]
[Round "-"]
[White "Leonid_Starozhilov"]
[Black "YrrriKharkiv"]
[Result "1-0"]
[WhiteElo "2624"]
[BlackElo "2068"]
[TimeControl "300"]
[EndTime "7:03:24 PDT"]
[Termination "Leonid_Starozhilov won by resignation"]

1. e4 {[%clk 0:04:58.2]} 1... e6 {[%clk 0:04:59.4]} 2. d4 {[%clk 0:04:56.9]}
2... d5 {[%clk 0:04:57.2]} 3. e5 {[%clk 0:04:55.9]} 3... c5 {[%clk 0:04:55.8]}
4. c3 {[%clk 0:04:53.7]} 4... Qb6 {[%clk 0:04:51.5]} 5. Nf3 {[%clk 0:04:50.3]}
5... Nc6 {[%clk 0:04:49.9]} 6. a3 {[%clk 0:04:49.2]} 6... f6 {[%clk 0:04:48.4]}
7. Bd3 {[%clk 0:04:47]} 7... f5 {[%clk 0:04:35.3]} 8. b4 {[%clk 0:04:44.6]} 8...
cxb4 {[%clk 0:04:33.5]} 9. axb4 {[%clk 0:04:43.3]} 9... Bd7 {[%clk 0:04:30.4]}
10. h4 {[%clk 0:04:41.7]} 10... g6 {[%clk 0:04:26.8]} 11. h5 {[%clk 0:04:37.7]}
11... Bg7 {[%clk 0:04:26.3]} 12. hxg6 {[%clk 0:04:31.1]} 12... hxg6 {[%clk
0:04:24.7]} 13. Rxh8 {[%clk 0:04:31]} 13... Bxh8 {[%clk 0:04:23.9]} 14. Bg5
{[%clk 0:04:30.3]} 14... Nge7 {[%clk 0:04:14.9]} 15. Nbd2 {[%clk 0:04:26.3]}
15... Qc7 {[%clk 0:03:56.1]} 16. Ke2 {[%clk 0:04:15.5]} 16... Kf7 {[%clk
0:03:47.5]} 17. Bf4 {[%clk 0:03:11.9]} 17... Rg8 {[%clk 0:03:30.4]} 18. Ng5+
{[%clk 0:03:07.3]} 18... Ke8 {[%clk 0:03:26.5]} 19. Nb3 {[%clk 0:03:07]} 19...
b6 {[%clk 0:03:25]} 20. Qd2 {[%clk 0:02:52.7]} 20... Bg7 {[%clk 0:03:10.1]} 21.
b5 {[%clk 0:02:40.3]} 21... Nd8 {[%clk 0:03:08.7]} 22. Qa2 {[%clk 0:02:38.5]}
22... Qxc3 {[%clk 0:03:03.6]} 23. Rc1 {[%clk 0:02:28.8]} 23... Qb4 {[%clk
0:02:57.3]} 24. Bd2 {[%clk 0:02:23.1]} 1-0

[Event "Live Chess"]
[Site "Chess.com"]
[Date "2023.05.21"]
[Round "-"]
[White "jimwad"]
[Black "martinsmartin63"]
[Result "1-0"]
[WhiteElo "1220"]
[BlackElo "757"]
[TimeControl "300"]
[EndTime "7:03:26 PDT"]
[Termination "jimwad won by resignation"]

1. c4 {[%clk 0:04:58.5]} 1... Nf6 {[%clk 0:04:52.7]} 2. g3 {[%clk 0:04:57.4]}
2... e6 {[%clk 0:04:50.6]} 3. Bg2 {[%clk 0:04:56.4]} 3... d5 {[%clk 0:04:48.5]}
4. cxd5 {[%clk 0:04:54.9]} 4... c6 {[%clk 0:04:46.1]} 5. dxc6 {[%clk 0:04:53]}
5... Nxc6 {[%clk 0:04:42.5]} 6. Bxc6+ {[%clk 0:04:48.8]} 6... bxc6 {[%clk
0:04:39.2]} 7. Qc2 {[%clk 0:04:45.4]} 7... Bb7 {[%clk 0:04:36.2]} 8. Nf3 {[%clk
0:04:43.8]} 8... c5 {[%clk 0:04:34]} 9. Nc3 {[%clk 0:04:37.8]} 9... Be7 {[%clk
0:04:29.2]} 10. d3 {[%clk 0:04:36.3]} 10... O-O {[%clk 0:04:20.4]} 11. Be3
{[%clk 0:04:34]} 11... Nd5 {[%clk 0:04:12.8]} 12. Nxd5 {[%clk 0:04:32.2]} 12...
Bxd5 {[%clk 0:04:10]} 13. Bxc5 {[%clk 0:04:29.6]} 13... Bxc5 {[%clk 0:04:07.3]}
14. Qxc5 {[%clk 0:04:28.1]} 14... Qc8 {[%clk 0:04:04]} 15. Qxc8 {[%clk
0:04:25.9]} 15... Rfxc8 {[%clk 0:04:01.2]} 16. O-O {[%clk 0:04:22.1]} 16... Rc2
{[%clk 0:03:54.3]} 17. e4 {[%clk 0:04:14.7]} 17... Bb7 {[%clk 0:03:47.1]} 18. b4
{[%clk 0:03:49]} 18... Rac8 {[%clk 0:03:33.9]} 19. Nd4 {[%clk 0:03:45.1]} 19...
Rd2 {[%clk 0:03:26.5]} 20. Rfd1 {[%clk 0:03:42.6]} 20... Re2 {[%clk 0:03:20.6]}
21. Nxe2 {[%clk 0:03:39.6]} 21... e5 {[%clk 0:03:12.9]} 22. Rac1 {[%clk
0:03:34.2]} 22... Rxc1 {[%clk 0:03:09]} 23. Rxc1 {[%clk 0:03:33]} 1-0

[Event "Live Chess"]
[Site "Chess.com"]
[Date "2023.05.21"]
[Round "-"]
[White "Bob2pen"]
[Black "tpm07"]
[Result "0-1"]
[WhiteElo "1828"]
[BlackElo "1952"]
[TimeControl "300"]
[EndTime "7:03:28 PDT"]
[Termination "tpm07 won by resignation"]

1. c4 {[%clk 0:04:57.3]} 1... e5 {[%clk 0:04:58.5]} 2. g3 {[%clk 0:04:56.4]}
2... c6 {[%clk 0:04:56.1]} 3. Bg2 {[%clk 0:04:55.3]} 3... d5 {[%clk 0:04:55.3]}
4. d4 {[%clk 0:04:52]} 4... e4 {[%clk 0:04:51]} 5. cxd5 {[%clk 0:04:48.5]} 5...
cxd5 {[%clk 0:04:50.9]} 6. e3 {[%clk 0:04:47.6]} 6... Nc6 {[%clk 0:04:48.6]} 7.
Nc3 {[%clk 0:04:45.9]} 7... Nf6 {[%clk 0:04:47.3]} 8. Nge2 {[%clk 0:04:44.4]}
8... Bg4 {[%clk 0:04:45.7]} 9. O-O {[%clk 0:04:42.8]} 9... Qd7 {[%clk
0:04:43.6]} 10. Qb3 {[%clk 0:04:40.1]} 10... Be7 {[%clk 0:04:26]} 11. Nf4 {[%clk
0:04:38.1]} 11... Rd8 {[%clk 0:04:20.2]} 12. Bd2 {[%clk 0:04:34.6]} 12... g5
{[%clk 0:04:06.4]} 13. Nfe2 {[%clk 0:04:32.8]} 13... Bf3 {[%clk 0:04:05]} 14.
Rac1 {[%clk 0:04:05.3]} 14... O-O {[%clk 0:03:54.5]} 15. Rfe1 {[%clk 0:03:59.7]}
15... Rb8 {[%clk 0:03:38.1]} 16. Na4 {[%clk 0:03:51.3]} 16... Qg4 {[%clk
0:03:34.4]} 17. Qd1 {[%clk 0:03:17.8]} 17... h5 {[%clk 0:03:19.5]} 18. Nac3
{[%clk 0:03:16.1]} 18... h4 {[%clk 0:03:16.9]} 19. h3 {[%clk 0:03:04.2]} 19...
Qe6 {[%clk 0:03:03.5]} 20. Qb3 {[%clk 0:02:59.1]} 20... hxg3 {[%clk 0:03:00.2]}
21. Nxg3 {[%clk 0:02:57.5]} 21... g4 {[%clk 0:02:53.4]} 22. Bxf3 {[%clk
0:02:43.4]} 22... gxf3 {[%clk 0:02:50]} 23. Kh2 {[%clk 0:02:42.2]} 23... Kg7
{[%clk 0:02:46]} 24. Rg1 {[%clk 0:02:40.6]} 24... Rh8 {[%clk 0:02:43.9]} 25.
Nf5+ {[%clk 0:02:19.6]} 25... Kf8 {[%clk 0:02:41.5]} 26. Rg5 {[%clk 0:02:09.7]}
26... Na5 {[%clk 0:02:08.8]} 27. Qb5 {[%clk 0:02:02.8]} 27... Nc4 {[%clk
0:02:05.8]} 28. Rd1 {[%clk 0:01:31.9]} 28... a6 {[%clk 0:02:03.2]} 29. Qa4
{[%clk 0:01:15]} 29... Nd7 {[%clk 0:02:00.4]} 30. Nxe7 {[%clk 0:01:11.6]} 30...
Qxh3+ {[%clk 0:01:53.7]} 0-1